[Event "Allsvenskan Div II 5 2021/2022: SS Manhem III - Falkenbergs SK"]
[Site "Schackcentrum, Vegatan 20, Gothenburg, Sweden"]
[Date "2022.04.10"]
[Round "1.5"]
[White "Zejak, Branislav"]
[Black "Lennartsson, Johan"]
[Result "1/2-1/2"]
[TimeControl "90 minutes for 40 moves + 30 minutes for the rest of the game + 30 seconds per move from move one."]
[WhiteFideId "1722565"]
[BlackFideId "1721356"]
[WhiteElo "1731"]
[BlackElo "1758"]

1. d4 {[%clk 01:30:30]} {[%emt 00:28:26]} Nf6 {[%clk 01:30:30]} {[%emt
00:00:18]} 2. c4 {[%clk 01:30:39]} {[%emt 00:00:26]} e6 {[%clk 01:30:57]}
{[%emt 00:00:04]} 3. Nf3 {[%clk 01:30:44]} {[%emt 00:00:24]} d5 {[%clk
01:31:18]} {[%emt 00:00:10]} 4. Bg5 {[%clk 01:27:54]} {[%emt 00:03:19]} Be7
{[%clk 01:30:37]} {[%emt 00:01:12]} 5. e3 {[%clk 01:26:48]} {[%emt 00:01:35]}
Nbd7 {[%clk 01:29:44]} {[%emt 00:01:24]} 6. Nc3 {[%clk 01:25:25]} {[%emt
00:01:53]} c6 {[%clk 01:29:56]} {[%emt 00:00:18]} 7. Bd3 {[%clk 01:24:19]}
{[%emt 00:01:36]} dxc4 {[%clk 01:29:57]} {[%emt 00:00:30]} 8. Bxc4 {[%clk
01:24:09]} {[%emt 00:00:16]} b5 {[%clk 01:30:26]} 9. Bd3 {[%clk 01:22:18]}
{[%emt 00:02:44]} a6 {[%clk 01:29:32]} {[%emt 00:01:25]} 10. Bxf6 {[%clk
01:17:41]} {[%emt 00:05:07]} Nxf6 {[%clk 01:28:11]} {[%emt 00:01:51]} 11. O-O
{[%clk 01:14:51]} {[%emt 00:03:19]} Bb7 {[%clk 01:28:05]} {[%emt 00:00:36]} 12.
Rc1 {[%clk 01:06:04]} {[%emt 00:09:17]} Rc8 {[%clk 01:27:02]} {[%emt 00:01:34]}
13. Ne4 {[%clk 01:05:43]} {[%emt 00:00:50]} Nxe4 {[%clk 01:23:32]} {[%emt
00:04:00]} 14. Bxe4 {[%clk 01:05:46]} {[%emt 00:00:27]} f5 {[%clk 01:22:14]}
{[%emt 00:01:48]} 15. Bb1 {[%clk 01:02:31]} {[%emt 00:01:11]} O-O {[%clk
01:22:44]} 16. Qb3 {[%clk 01:01:38]} {[%emt 00:03:57]} Qd5 {[%clk 01:14:26]}
{[%emt 00:08:48]} 17. Qxd5 {[%clk 00:57:14]} {[%emt 00:04:55]} cxd5 {[%clk
01:12:50]} {[%emt 00:02:06]} 18. Ne5 {[%clk 00:56:27]} {[%emt 00:01:17]} Bd6
{[%clk 01:10:38]} {[%emt 00:02:42]} 19. Nd3 {[%clk 00:48:52]} {[%emt 00:08:05]}
a5 {[%clk 01:03:41]} {[%emt 00:07:27]} 20. f4 {[%clk 00:36:58]} {[%emt
00:12:24]} b4 {[%clk 00:58:50]} {[%emt 00:05:20]} 21. Rxc8 {[%clk 00:34:37]}
{[%emt 00:02:52]} Rxc8 {[%clk 00:59:09]} {[%emt 00:00:12]} 22. Rc1 {[%clk
00:34:34]} {[%emt 00:00:32]} Rxc1+ {[%clk 00:56:37]} {[%emt 00:03:02]} 23. Nxc1
{[%clk 00:35:03]} {[%emt 00:00:01]} Ba6 {[%clk 00:54:27]} {[%emt 00:02:39]} 24.
b3 {[%clk 00:34:36]} {[%emt 00:00:58]} Kf7 {[%clk 00:54:11]} {[%emt 00:00:46]}
25. Bd3 {[%clk 00:34:47]} {[%emt 00:00:18]} Bxd3 {[%clk 00:54:28]} {[%emt
00:00:14]} 26. Nxd3 {[%clk 00:35:09]} {[%emt 00:00:08]} Kf6 {[%clk 00:53:21]}
{[%emt 00:01:37]} 27. Kf2 {[%clk 00:35:22]} {[%emt 00:00:17]} g5 {[%clk
00:52:40]} {[%emt 00:01:11]} 28. g3 {[%clk 00:34:41]} {[%emt 00:01:11]} g4
{[%clk 00:51:05]} {[%emt 00:02:06]} 1/2-1/2

[Event "Allsvenskan Div II 5 2021/2022: SS Manhem III - Falkenbergs SK"]
[Site "Schackcentrum, Vegatan 20, Gothenburg, Sweden"]
[Date "2022.04.10"]
[Round "1.6"]
[White "Dahlstrom, Henrik"]
[Black "Gustavsson, Gert"]
[Result "1-0"]
[TimeControl "90 minutes for 40 moves + 30 minutes for the rest of the game + 30 seconds per move from move one."]
[WhiteFideId "1767941"]
[BlackFideId "1731939"]
[WhiteElo "1780"]
[BlackElo "1722"]

1. e4 {[%clk 01:30:45]} {[%emt 00:00:14]} c5 {[%clk 01:30:51]} {[%emt
00:00:10]} 2. Nf3 {[%clk 01:31:03]} {[%emt 00:00:12]} Nc6 {[%clk 01:31:07]}
{[%emt 00:00:14]} 3. d4 {[%clk 01:31:18]} {[%emt 00:00:14]} cxd4 {[%clk
01:31:27]} {[%emt 00:00:11]} 4. Nxd4 {[%clk 01:31:41]} {[%emt 00:00:06]} Nf6
{[%clk 01:31:48]} {[%emt 00:00:09]} 5. Nc3 {[%clk 01:31:47]} {[%emt 00:00:25]}
d6 {[%clk 01:31:34]} {[%emt 00:00:44]} 6. Bg5 {[%clk 01:32:01]} {[%emt
00:00:15]} a6 {[%clk 01:31:29]} {[%emt 00:00:36]} 7. Qd2 {[%clk 01:32:23]}
{[%emt 00:00:07]} Qb6 {[%clk 01:28:58]} {[%emt 00:03:00]} 8. O-O-O {[%clk
01:31:18]} {[%emt 00:01:35]} Nxd4 {[%clk 01:26:23]} {[%emt 00:03:07]} 9. Qxd4
{[%clk 01:28:10]} {[%emt 00:03:38]} Qxd4 {[%clk 01:25:52]} {[%emt 00:01:00]} 10.
Rxd4 {[%clk 01:28:35]} {[%emt 00:00:05]} Be6 {[%clk 01:25:52]} {[%emt
00:00:30]} 11. Be2 {[%clk 01:23:56]} {[%emt 00:05:09]} h6 {[%clk 01:25:21]}
{[%emt 00:01:01]} 12. Bxf6 {[%clk 01:22:52]} {[%emt 00:01:34]} gxf6 {[%clk
01:25:40]} {[%emt 00:00:11]} 13. f4 {[%clk 01:20:36]} {[%emt 00:02:45]} f5
{[%clk 01:22:47]} {[%emt 00:03:24]} 14. exf5 {[%clk 01:07:22]} {[%emt
00:13:44]} Bxf5 {[%clk 01:23:02]} {[%emt 00:00:15]} 15. Bf3 {[%clk 01:07:42]}
{[%emt 00:00:09]} Rb8 {[%clk 01:20:21]} {[%emt 00:03:11]} 16. Re1 {[%clk
01:06:52]} {[%emt 00:01:19]} Kd8 {[%clk 01:14:10]} {[%emt 00:06:42]} 17. Rb4
{[%clk 00:57:30]} {[%emt 00:09:51]} b5 {[%clk 01:08:02]} {[%emt 00:06:38]} 18.
a4 {[%clk 00:57:06]} {[%emt 00:00:54]} Bd7 {[%clk 01:07:51]} {[%emt 00:00:42]}
19. axb5 {[%clk 00:53:56]} {[%emt 00:03:40]} axb5 {[%clk 01:04:15]} {[%emt
00:04:07]} 20. Nd5 {[%clk 00:39:36]} {[%emt 00:14:48]} e6 {[%clk 01:01:02]}
{[%emt 00:03:43]} 21. Ne3 {[%clk 00:31:56]} {[%emt 00:08:10]} d5 {[%clk
01:00:24]} {[%emt 00:01:08]} 22. Rb3 {[%clk 00:32:00]} {[%emt 00:00:25]} Bd6
{[%clk 00:58:10]} {[%emt 00:02:45]} 23. g3 {[%clk 00:32:08]} {[%emt 00:00:21]}
b4 {[%clk 00:54:52]} {[%emt 00:03:48]} 24. Ng4 {[%clk 00:29:41]} {[%emt
00:02:57]} Ba4 {[%clk 00:50:56]} {[%emt 00:04:26]} 25. Rd3 {[%clk 00:27:42]}
{[%emt 00:02:27]} Rc8 {[%clk 00:48:24]} {[%emt 00:03:04]} 26. b3 {[%clk
00:26:37]} {[%emt 00:01:35]} Bb5 {[%clk 00:48:17]} {[%emt 00:00:36]} 27. Rd2
{[%clk 00:26:36]} {[%emt 00:00:30]} Kc7 {[%clk 00:41:39]} {[%emt 00:07:10]} 28.
Ne5 {[%clk 00:24:11]} {[%emt 00:02:54]} f6 {[%clk 00:37:07]} {[%emt 00:05:03]}
29. Nf7 {[%clk 00:21:34]} {[%emt 00:03:05]} Rh7 {[%clk 00:31:44]} {[%emt
00:05:54]} 30. Nxd6 {[%clk 00:20:49]} {[%emt 00:01:15]} Kxd6 {[%clk 00:31:59]}
{[%emt 00:00:15]} 31. Re4 {[%clk 00:16:50]} {[%emt 00:04:30]} Ra7 {[%clk
00:23:00]} {[%emt 00:09:30]} 32. Rxb4 {[%clk 00:15:08]} {[%emt 00:02:12]} Kc5
{[%clk 00:23:13]} {[%emt 00:00:17]} 33. Rbd4 {[%clk 00:15:18]} {[%emt
00:00:17]} Ra1+ {[%clk 00:19:53]} {[%emt 00:03:53]} 34. Kb2 {[%clk 00:15:25]}
{[%emt 00:00:23]} Rca8 {[%clk 00:20:07]} {[%emt 00:00:16]} 35. f5 {[%clk
00:15:04]} {[%emt 00:00:50]} R1a2+ {[%clk 00:20:01]} {[%emt 00:00:37]} 36. Kc3
{[%clk 00:15:01]} {[%emt 00:00:32]} Rc8 {[%clk 00:18:38]} {[%emt 00:01:54]} 37.
fxe6 {[%clk 00:12:12]} {[%emt 00:03:19]} Kb6+ {[%clk 00:17:20]} {[%emt
00:01:48]} 38. Kb4 {[%clk 00:12:18]} {[%emt 00:00:23]} Raxc2 {[%clk 00:14:38]}
{[%emt 00:03:13]} 39. Rxd5 {[%clk 00:10:21]} {[%emt 00:02:27]} Be8 {[%clk
00:12:36]} {[%emt 00:02:33]} 40. Rd6+ {[%clk 00:09:43]} {[%emt 00:01:07]} Ka7
{[%clk 00:12:11]} {[%emt 00:00:56]} 41. Rxc2 {[%clk 00:06:40]} {[%emt
00:03:32]} Rxc2 {[%clk 00:12:32]} {[%emt 00:00:09]} 42. Rd8 {[%clk 00:06:53]}
{[%emt 00:00:17]} Bg6 {[%clk 00:10:48]} {[%emt 00:02:15]} 43. Kb5 {[%clk
00:06:22]} 1-0